bitfinex/quotes_BTCUSD_20251224
["timestamp","ask_amount","ask_price","bid_price","bid_amount"]
[1766595224418,0.01145265,87316.0,87312.0,4.8e-07]
[1766595224622,0.05726472,87314.0,87312.0,4.8e-07]
[1766595224853,0.05726472,87314.0,87311.0,1e-08]
[1766595224854,0.05726589,87312.0,87311.0,1e-08]
[1766595225091,0.05726589,87312.0,87310.0,0.0002]
[1766595225092,1.49183655,87311.0,87310.0,1e-08]
[1766595225310,1.43457,87311.0,87310.0,1e-08]
[1766595225535,1.49183655,87311.0,87310.0,1e-08]
[1766595226572,0.01145449,87302.0,87296.0,0.0002]
[1766595226846,0.01145462,87301.0,87296.0,0.0002]
[1766595227050,0.05036284,87309.0,87294.0,0.010379]
[1766595227051,0.01145514,87297.0,87294.0,0.010379]
[1766595227269,0.01145422,87304.0,87294.0,0.010379]
[1766595227472,0.06188284,87309.0,87297.0,0.000354]
[1766595227473,0.01145475,87300.0,87297.0,0.000354]
[1766595227676,0.01145475,87300.0,87286.0,0.0001]
[1766595227677,0.01145501,87298.0,87286.0,0.0001]
[1766595227887,0.05728098,87289.0,87286.0,0.0001]
[1766595228095,0.0114558,87292.0,87286.0,0.0001]
[1766595228313,0.0114558,87292.0,87273.0,0.22916402]
[1766595228314,1.43457,87288.0,87269.0,0.01145882]
[1766595228524,0.01145593,87291.0,87266.0,0.01152]
[1766595228525,0.01145777,87277.0,87267.0,0.01145908]
[1766595228770,0.01145777,87277.0,87266.0,0.01145921]
[1766595228771,0.0114575,87279.0,87270.0,0.01152]
[1766595228979,0.05729265,87272.0,87263.0,0.01152]
[1766595229159,0.22915282,87278.0,87263.0,0.01152]
[1766595229160,0.00045,87270.0,87263.0,0.01152]
[1766595229406,0.01145829,87273.0,87260.0,0.40598919]
[1766595229612,0.01145829,87273.0,87262.0,0.01145974]
[1766595229818,0.00035491,87273.0,87263.0,0.01145961]
[1766595230018,0.0118132,87273.0,87262.0,0.01145974]
[1766595230280,0.00025591,87273.0,87272.0,0.00257384]
[1766595230482,0.01145856,87271.0,87261.0,0.01145987]
[1766595230628,0.01145856,87271.0,87260.0,0.01146]
[1766595230629,0.00044616,87272.0,87262.0,0.01145974]
[1766595230834,0.00044616,87272.0,87261.0,0.05729936]
[1766595231029,0.01145856,87271.0,87264.0,0.00025278]
[1766595231234,0.00025591,87273.0,87264.0,0.00025278]
[1766595231530,0.00025591,87273.0,87271.0,0.00055]
[1766595231734,0.00025591,87273.0,87264.0,0.00025278]
[1766595231735,0.05729411,87269.0,87264.0,0.00025278]
[1766595231983,0.01145908,87267.0,87264.0,0.00025278]
[1766595232189,0.01145908,87267.0,87264.0,1e-08]
[1766595232341,0.05729646,87266.0,87264.0,1e-08]
[1766595232590,0.01152,87268.0,87264.0,1e-08]
[1766595233184,0.01145908,87267.0,87264.0,1e-08]
[1766595233546,0.02297895,87268.0,87264.0,1e-08]
[1766595233950,0.01152,87268.0,87264.0,1e-08]
[1766595234364,0.0084,87268.0,87264.0,1e-08]
[1766595234693,1.49186615,87266.0,87264.0,1e-08]
[1766595234963,1.43432294,87266.0,87264.0,1e-08]
[1766595235517,0.06875493,87267.0,87264.0,1e-08]
[1766595235699,0.0572962,87266.0,87264.0,1e-08]
[1766595235903,1.4918662,87266.0,87264.0,1e-08]
[1766595236105,1.43457,87266.0,87264.0,1e-08]
[1766595236324,0.05729673,87265.0,87264.0,1e-08]
[1766595236622,1.49186673,87265.0,87264.0,1e-08]
[1766595238753,0.05729624,87266.0,87264.0,1e-08]
[1766595239796,0.0572963,87266.0,87264.0,1e-08]
[1766595239913,0.05729673,87265.0,87264.0,1e-08]
[1766595241176,0.0572963,87266.0,87264.0,1e-08]
[1766595241383,0.00735673,87266.0,87264.0,1e-08]
[1766595243393,0.00161414,87266.0,87264.0,1e-08]
[1766595243592,0.01145908,87267.0,87264.0,1e-08]
[1766595244007,0.01145895,87268.0,87264.0,1e-08]
[1766595244434,0.06875303,87269.0,87264.0,1e-08]
[1766595244645,0.01145895,87268.0,87264.0,1e-08]
[1766595244855,0.06875303,87269.0,87264.0,1e-08]
[1766595244856,0.01152,87271.0,87264.0,1e-08]
[1766595245056,0.01145882,87269.0,87264.0,1e-08]
[1766595245455,0.01152,87271.0,87264.0,1e-08]
[1766595245662,0.01152,87271.0,87264.0,0.05729689]
[1766595245856,0.01152,87271.0,87264.0,1e-08]
[1766595246594,0.05725737,87280.0,87264.0,1e-08]
[1766595246595,0.22907145,87309.0,87294.0,0.01145554]
[1766595246811,0.22907145,87309.0,87303.0,0.04981784]
[1766595246812,1.41671,87309.0,87303.0,0.04981784]
[1766595247016,0.05726207,87318.0,87309.0,0.000549]
[1766595247230,0.00011,87313.0,87297.0,0.05036284]
[1766595247430,0.00011,87313.0,87298.0,0.01097]
[1766595247431,1.42816409,87305.0,87298.0,0.01097]
[1766595247679,0.01145409,87305.0,87298.0,0.01097]
[1766595247892,0.01145409,87305.0,87293.0,0.01156567]
[1766595247893,0.01145514,87297.0,87293.0,0.00011]
[1766595248107,0.24055244,87300.0,87293.0,0.00011]
[1766595248108,1.41671,87299.0,87294.0,3.5e-07]
[1766595248514,0.01145488,87299.0,87294.0,3.5e-07]
[1766595248742,0.0687297,87299.0,87294.0,3.5e-07]
[1766595248942,0.01145501,87298.0,87294.0,3.5e-07]
[1766595249471,0.01145475,87300.0,87294.0,3.5e-07]
[1766595249615,0.06872886,87300.0,87298.0,0.000106]
[1766595249822,0.01145475,87300.0,87294.0,3.5e-07]
[1766595250038,0.05727442,87299.0,87294.0,3.5e-07]
[1766595250184,0.01145488,87299.0,87294.0,3.5e-07]
[1766595250611,0.06872944,87299.0,87294.0,3.5e-07]
[1766595250816,0.01145501,87298.0,87294.0,3.5e-07]
[1766595251243,0.01145514,87297.0,87294.0,3.5e-07]
[1766595251600,0.01145475,87300.0,87297.0,0.000106]
[1766595251806,0.01145501,87298.0,87294.0,3.5e-07]
[1766595252030,0.06873115,87297.0,87294.0,3.5e-07]
[1766595252636,0.0687301,87298.0,87294.0,3.5e-07]
[1766595252839,0.01145514,87297.0,87294.0,3.5e-07]
[1766595253041,0.05727639,87296.0,87294.0,3.5e-07]
[1766595253316,0.01145514,87297.0,87294.0,3.5e-07]
[1766595253556,0.01145514,87297.0,87285.0,0.01145672]
[1766595253557,0.06873087,87297.0,87283.0,0.05036284]
[1766595253755,0.01145567,87293.0,87284.0,0.01152]
[1766595253978,0.01145527,87296.0,87284.0,0.02297685]
[1766595254177,0.06873275,87295.0,87284.0,0.02297685]
[1766595254390,0.00010646,87297.0,87287.0,0.06873873]
[1766595254538,0.00010646,87297.0,87287.0,0.01145645]
[1766595254725,0.00010646,87297.0,87289.0,0.01145619]
[1766595254926,0.00010646,87297.0,87290.0,0.01145606]
[1766595255123,0.00010646,87297.0,87289.0,0.01145619]
[1766595255124,0.00010646,87297.0,87291.0,0.01152]
[1766595255784,4.6e-07,87297.0,87291.0,0.02297593]
[1766595256776,4.6e-07,87297.0,87291.0,0.01152]
[1766595256979,4.6e-07,87297.0,87296.0,0.05727639]
[1766595257738,4.6e-07,87297.0,87294.0,0.01145554]
[1766595257873,4.6e-07,87297.0,87296.0,0.05727639]
[1766595261500,0.0688286,87313.0,87305.0,0.01145409]
[1766595261501,0.00011,87313.0,87305.0,0.01145409]
[1766595261716,0.00011,87313.0,87312.0,0.05080684]
[1766595261931,0.00011,87313.0,87312.0,0.05036284]
[1766595262619,0.01145199,87321.0,87312.0,0.05036284]
[1766595262886,0.01145252,87317.0,87312.0,0.05036284]
[1766595263095,0.01145252,87317.0,87303.0,0.00011]
[1766595263096,0.22905317,87316.0,87303.0,0.00011]
[1766595263261,0.000765,87312.0,87304.0,0.01152]
[1766595263468,0.01145265,87316.0,87304.0,0.01152]
[1766595263675,0.01145239,87318.0,87308.0,0.0114537]
[1766595263880,0.06871522,87317.0,87306.0,0.01145396]
[1766595264101,0.01145265,87316.0,87305.0,0.01145409]
[1766595264299,0.01145265,87316.0,87305.0,0.06872438]
[1766595264670,0.01145278,87315.0,87306.0,0.01152]
[1766595265019,0.01145213,87320.0,87306.0,0.02297396]
[1766595265152,0.01145252,87317.0,87303.0,0.00011]
[1766595265377,0.000215,87306.0,87303.0,0.00011]
[1766595265590,0.000215,87306.0,87300.0,0.01152]
[1766595265591,0.01145409,87305.0,87300.0,0.01152]
[1766595265793,0.01145436,87303.0,87300.0,0.00454549]
[1766595266022,0.06820676,87303.0,87300.0,0.00454549]
[1766595266642,0.01145436,87303.0,87300.0,0.00454549]
[1766595266842,0.06872552,87304.0,87300.0,0.00454549]
[1766595267056,0.01145436,87303.0,87300.0,0.00454549]
[1766595267352,0.01145436,87303.0,87290.0,0.00011]
[1766595267353,0.01145449,87302.0,87299.0,0.01152]
[1766595267555,0.24052143,87311.0,87299.0,0.01152]
[1766595267859,0.01145409,87305.0,87299.0,0.01152]
[1766595268093,0.06872389,87306.0,87299.0,0.01152]
[1766595268302,0.01145409,87305.0,87299.0,0.01152]
[1766595268486,0.06872389,87306.0,87299.0,0.01152]
[1766595268660,0.01145409,87305.0,87299.0,0.01152]
[1766595270048,0.06872851,87300.0,87299.0,0.01152]
[1766595271238,0.06872851,87300.0,87297.0,0.05036284]
[1766595271239,0.05727508,87298.0,87297.0,0.05036284]
[1766595271376,0.05727508,87298.0,87297.0,0.06188284]
[1766595272459,0.01145554,87294.0,87290.0,0.00011]
[1766595272758,0.01145554,87294.0,87283.0,0.1076472]
[1766595272759,0.01145514,87297.0,87287.0,0.01152]
[1766595273056,0.06873484,87292.0,87287.0,0.01152]
[1766595273242,0.01145567,87293.0,87287.0,0.01152]
[1766595273243,0.01145514,87297.0,87292.0,0.000549]
[1766595273450,0.0114554,87295.0,87292.0,0.000549]
[1766595273812,0.0114558,87292.0,87287.0,0.01152]
[1766595274033,0.0114558,87292.0,87287.0,0.01162646]
[1766595274450,0.01145593,87291.0,87287.0,0.01162646]
[1766595274855,0.01145567,87293.0,87291.0,0.000549]
[1766595275015,0.06873424,87293.0,87291.0,0.000549]
[1766595275403,0.06873424,87293.0,87287.0,0.01162646]
[1766595275404,0.01145554,87294.0,87293.0,0.00055]
[1766595275814,0.01145554,87294.0,87282.0,0.06874214]
[1766595275815,0.01152,87302.0,87266.0,0.03438712]
[1766595275816,0.0114575,87279.0,87266.0,0.03438712]
[1766595276017,0.0114575,87279.0,87267.0,0.05498786]
[1766595276018,0.01145803,87275.0,87267.0,0.05498786]
[1766595276237,0.0572882,87278.0,87277.0,0.00011]
[1766595276414,0.01145829,87273.0,87267.0,0.05338631]
[1766595276621,0.01145829,87273.0,87258.0,0.24066325]
[1766595276622,0.00044,87267.0,87259.0,0.11228844]
[1766595276844,0.00044,87267.0,87262.0,0.01152]
[1766595277043,0.06875309,87269.0,87262.0,0.01152]
[1766595277254,0.01145882,87269.0,87262.0,0.01152]
[1766595277412,0.01145829,87273.0,87262.0,0.02297974]
[1766595277603,0.01145882,87269.0,87262.0,0.01152]
[1766595277808,0.06875138,87271.0,87262.0,0.01152]
[1766595278108,0.01145908,87267.0,87262.0,0.01152]
[1766595278351,0.06875387,87268.0,87262.0,0.01152]
[1766595278556,0.01145895,87268.0,87260.0,0.04583608]
[1766595278758,0.01145895,87268.0,87265.0,0.01152]
[1766595279095,0.01145895,87268.0,87265.0,0.01108]
[1766595279236,0.06875215,87270.0,87265.0,0.01108]
[1766595279445,0.01145816,87274.0,87270.0,0.000549]
[1766595279650,0.0687498,87273.0,87270.0,0.000549]
[1766595279869,0.01145829,87273.0,87260.0,0.04583608]
[1766595280047,0.01145869,87270.0,87266.0,0.01152]
[1766595280756,0.05729154,87273.0,87266.0,0.01152]
[1766595281223,0.05729154,87273.0,87253.0,0.01146092]
[1766595281224,0.01145869,87270.0,87253.0,0.01146092]
[1766595281426,0.01145895,87268.0,87260.0,0.01152]
[1766595281602,1.35622,87270.0,87261.0,0.01145987]
[1766595281808,0.01145829,87273.0,87262.0,0.01145974]
[1766595281970,0.01145829,87273.0,87263.0,0.01145961]
[1766595282453,0.02297803,87275.0,87263.0,0.01145961]
[1766595282775,0.02297803,87275.0,87264.0,0.01145948]
[1766595283131,0.02297803,87275.0,87264.0,1e-08]
[1766595283132,0.05729349,87270.0,87264.0,1e-08]
[1766595283290,0.01145829,87273.0,87264.0,1e-08]
[1766595283475,0.01145856,87271.0,87264.0,1e-08]
[1766595283680,1.36767737,87280.0,87266.0,0.01145921]
[1766595283936,0.65911357,87497.0,87264.0,1e-08]
[1766595283937,0.02297659,87286.0,87276.0,0.000549]
[1766595284113,0.01145685,87284.0,87276.0,0.012069]
[1766595284324,0.06874117,87284.0,87276.0,0.012069]
[1766595284668,0.01145672,87285.0,87276.0,0.01152]
[1766595284852,4.6e-07,87279.0,87276.0,0.01152]
[1766595284985,4.6e-07,87279.0,87276.0,0.0229779]
[1766595285190,4.6e-07,87279.0,87277.0,0.0572887]
[1766595285420,4.6e-07,87279.0,87278.0,0.0572882]
[1766595285629,4.6e-07,87279.0,87276.0,0.0229779]
[1766595285630,4.6e-07,87279.0,87276.0,0.01152]
[1766595285837,4.6e-07,87279.0,87276.0,0.08026741]
[1766595285995,4.6e-07,87279.0,87276.0,0.0229779]
[1766595287026,4.6e-07,87279.0,87276.0,0.08026679]
[1766595287227,4.6e-07,87279.0,87277.0,0.0572887]
[1766595287906,4.6e-07,87279.0,87278.0,0.0572882]
[1766595288465,4.6e-07,87279.0,87277.0,0.0572887]
[1766595288983,4.6e-07,87279.0,87278.0,0.0572882]
[1766595290311,4.6e-07,87279.0,87277.0,0.04583608]
[1766595290538,4.6e-07,87279.0,87277.0,0.10312482]
[1766595290700,4.6e-07,87279.0,87276.0,0.0229779]
[1766595290701,4.6e-07,87279.0,87276.0,0.01152]
[1766595290904,4.6e-07,87279.0,87276.0,0.08026712]
[1766595291087,4.6e-07,87279.0,87277.0,0.05728832]
[1766595291291,4.6e-07,87279.0,87276.0,0.01152]
[1766595291675,4.6e-07,87279.0,87276.0,0.0229779]
[1766595292087,4.6e-07,87279.0,87276.0,0.08026721]
[1766595292923,4.6e-07,87279.0,87277.0,0.05728873]
[1766595293357,4.6e-07,87279.0,87276.0,0.08026721]
[1766595293696,4.6e-07,87279.0,87277.0,0.05728879]
[1766595294325,4.6e-07,87279.0,87276.0,0.0229779]
[1766595294529,4.6e-07,87279.0,87276.0,0.01152]
[1766595294792,4.6e-07,87279.0,87244.0,0.08207462]
[1766595294793,0.000106,87276.0,87270.0,0.01152]
[1766595295107,0.06874721,87277.0,87270.0,0.01152]
[1766595295312,1.42740836,87279.0,87270.0,0.01152]
[1766595295313,4.6e-07,87279.0,87270.0,0.01152]
[1766595295512,4.6e-07,87279.0,87271.0,0.01145856]
[1766595295716,4.6e-07,87279.0,87270.0,0.01152]
[1766595295975,4.6e-07,87279.0,87270.0,0.02297869]
[1766595296115,4.6e-07,87279.0,87271.0,0.01145856]
[1766595296665,4.6e-07,87279.0,87270.0,0.01152]
[1766595296872,4.6e-07,87279.0,87274.0,0.05729028]
[1766595297096,4.6e-07,87279.0,87275.0,0.01152]
[1766595298248,0.000106,87275.0,87269.0,0.06875292]
[1766595298428,0.000106,87275.0,87270.0,0.02297869]
[1766595298625,4.6e-07,87279.0,87270.0,0.08027194]
[1766595298824,4.6e-07,87279.0,87271.0,0.01145856]
[1766595299026,4.6e-07,87279.0,87272.0,0.01145842]
[1766595299369,4.6e-07,87279.0,87271.0,0.01145856]
[1766595299898,4.6e-07,87279.0,87272.0,0.01152]
[1766595300318,0.45812748,87312.0,87272.0,0.01152]
[1766595300319,0.01145567,87293.0,87280.0,0.06874371]
[1766595300535,0.06873421,87293.0,87281.0,0.08026289]
[1766595300788,0.01145593,87291.0,87281.0,0.01152]
[1766595300988,0.01145672,87285.0,87281.0,0.011414]
[1766595301202,0.34363143,87303.0,87282.0,0.01152]
[1766595301203,1.48787348,87286.0,87282.0,0.01152]
[1766595301410,0.01145672,87285.0,87282.0,0.00010646]
[1766595301624,0.01145672,87285.0,87280.0,0.01152]
[1766595301840,0.01156324,87285.0,87280.0,0.01152]
[1766595302473,0.00010652,87285.0,87280.0,0.01152]
[1766595303930,0.01156324,87285.0,87280.0,0.00182703]
[1766595304098,0.00010652,87285.0,87280.0,0.00182703]
[1766595305030,1.43059,87278.0,87266.0,0.01145921]
[1766595305208,1.43059,87278.0,87268.0,0.06875335]
[1766595305417,1.43059,87278.0,87267.0,0.02297908]
[1766595305681,1.44204764,87278.0,87267.0,0.01145908]
[1766595305875,1.44204764,87278.0,87264.0,0.05729677]
[1766595305876,0.06875023,87273.0,87268.0,0.01152]
[1766595306068,0.068749,87274.0,87268.0,0.01152]
[1766595306268,0.01145882,87269.0,87264.0,1e-08]
[1766595306608,1.43059,87269.0,87264.0,1e-08]
[1766595308765,1.43059,87269.0,87259.0,0.01146013]
[1766595308766,1.43059,87264.0,87238.0,0.08207462]
[1766595308972,1.43059,87264.0,87211.0,1.14663652]
[1766595308973,1.43059,87260.0,87250.0,0.01146131]
[1766595309177,0.01146026,87258.0,87248.0,0.0002]
[1766595309558,0.01146039,87257.0,87248.0,0.0002]
[1766595309942,1.4993518,87258.0,87248.0,0.01166158]
[1766595309943,1.44205026,87258.0,87248.0,0.01166158]
[1766595310164,1.43059,87258.0,87249.0,0.01146144]
[1766595310386,1.43069646,87258.0,87249.0,0.01146144]
[1766595310523,1.43059,87257.0,87248.0,0.0002]
[1766595310737,1.43059,87257.0,87252.0,0.01146105]
[1766595310920,1.430041,87257.0,87251.0,0.01146118]
[1766595311124,1.43059,87255.0,87248.0,0.0002]
[1766595311326,0.0572966,87256.0,87243.0,0.01146223]
[1766595311327,1.43059,87250.0,87243.0,0.01146223]
[1766595311527,0.01152,87250.0,87245.0,0.05730981]
[1766595311733,0.01152,87250.0,87244.0,0.0114621]
[1766595311734,0.01097,87250.0,87244.0,0.0114621]
[1766595312178,0.01097,87250.0,87236.0,0.11193]
[1766595312357,0.01097,87250.0,87242.0,0.01146236]
[1766595312559,0.02243131,87250.0,87239.0,0.06877631]
[1766595312895,0.07973797,87250.0,87239.0,0.01146276]
[1766595313198,0.01146158,87248.0,87238.0,0.01146289]
[1766595313422,0.06827682,87250.0,87238.0,0.01146289]
[1766595313548,0.07973813,87250.0,87239.0,0.01146276]
[1766595313754,0.01152,87251.0,87242.0,0.06877376]
[1766595314007,0.01152,87255.0,87244.0,0.0114621]
[1766595314502,0.01152,87255.0,87254.0,0.00031424]
[1766595314702,1.48788787,87264.0,87254.0,2.4e-07]
[1766595314904,0.02298039,87257.0,87247.0,0.01146171]
[1766595315107,0.02298039,87257.0,87247.0,0.06877025]
[1766595315108,0.01152,87257.0,87247.0,0.06877025]
[1766595315309,0.01152,87257.0,87243.0,0.12862223]
[1766595315310,0.000785,87247.0,87243.0,0.01152]
[1766595315715,5e-06,87247.0,87246.0,0.05730921]
[1766595315854,0.01162646,87258.0,87247.0,0.06876974]
[1766595316059,0.02308672,87258.0,87247.0,0.01146171]
[1766595316264,1.45367672,87258.0,87246.0,0.06877041]
[1766595316460,0.06876251,87257.0,87246.0,0.06877101]
[1766595316656,0.01146066,87255.0,87245.0,0.06877181]
[1766595316898,0.01146052,87256.0,87245.0,0.06877181]
[1766595317108,1.44221646,87258.0,87247.0,0.01146171]
[1766595317457,0.05730199,87257.0,87246.0,0.01146184]
[1766595317903,1.51097808,87258.0,87247.0,0.01146171]
[1766595318108,1.51097808,87258.0,87243.0,0.01152]
[1766595318109,1.4993556,87253.0,87243.0,0.01152]
[1766595318367,1.43059,87253.0,87243.0,0.08029316]
[1766595318492,1.43059,87253.0,87245.0,0.01146197]
[1766595318700,1.43059,87253.0,87245.0,0.0687718]
[1766595319056,1.43059,87253.0,87246.0,0.01146184]
[1766595319254,1.43059,87253.0,87247.0,0.01146171]
[1766595319662,0.00010646,87258.0,87248.0,0.10166]
[1766595319896,0.65951357,87510.0,87272.0,0.01145842]
[1766595319897,0.01152,87285.0,87272.0,0.01145842]
[1766595320115,0.01152,87285.0,87257.0,0.04583608]
[1766595320116,0.01152,87285.0,87269.0,0.05729411]
[1766595320117,1.47642608,87284.0,87269.0,0.05729411]
[1766595320334,0.01162654,87285.0,87275.0,0.01145803]
[1766595320688,0.01162654,87285.0,87273.0,0.01152]
[1766595320689,0.01145698,87283.0,87273.0,0.01152]
[1766595320929,1.48787619,87282.0,87273.0,0.01152]
[1766595321125,1.43059,87282.0,87273.0,0.01152]
[1766595321482,0.0572891,87277.0,87273.0,0.01152]
[1766595321805,0.06874463,87280.0,87273.0,0.01152]
[1766595322219,0.01145737,87280.0,87273.0,0.01152]
[1766595322824,0.0114575,87279.0,87273.0,0.01152]
[1766595323706,0.01145764,87278.0,87273.0,0.01152]
[1766595324092,0.0114575,87279.0,87273.0,0.01152]
[1766595324495,0.01145777,87277.0,87273.0,0.01152]
[1766595324716,0.0687477,87276.0,87273.0,0.01152]
[1766595324918,0.06874688,87277.0,87266.0,0.01145921]
[1766595325318,0.01145764,87278.0,87267.0,0.01145908]
[1766595325500,0.01145777,87277.0,87267.0,0.01145908]
[1766595325917,0.01145737,87280.0,87270.0,0.01145869]
[1766595326117,1.43059,87282.0,87270.0,0.01145869]
[1766595326375,0.01145737,87280.0,87270.0,0.01145869]
[1766595326522,1.49933281,87282.0,87271.0,0.01145856]
[1766595326717,1.49933281,87282.0,87270.0,0.06875209]
[1766595326718,0.01145737,87280.0,87270.0,0.01145869]
[1766595326926,0.01145737,87280.0,87271.0,0.01152]
[1766595327122,0.06874376,87281.0,87279.0,0.00016201]
[1766595327326,1.44204711,87282.0,87279.0,0.00016201]
[1766595327327,0.00010654,87285.0,87282.0,0.01145711]
[1766595327552,0.01152,87294.0,87287.0,0.06873873]
[1766595327726,1.48788475,87300.0,87291.0,0.01145593]
[1766595327727,1.47643,87300.0,87291.0,0.01145593]
[1766595327928,1.47643,87300.0,87284.0,0.00114555]
[1766595327929,0.02297501,87298.0,87288.0,0.01145632]
[1766595328295,0.02297501,87298.0,87286.0,0.06873954]
[1766595328296,0.0688409,87297.0,87286.0,0.06873954]
[1766595328500,0.0688409,87297.0,87286.0,0.01145659]
[1766595328853,0.00011,87297.0,87287.0,0.06873849]
[1766595329038,0.00011,87297.0,87287.0,0.01145645]
[1766595329440,0.00011,87297.0,87287.0,0.06873815]
[1766595329703,0.00011,87297.0,87290.0,0.01145606]
[1766595329912,0.00011,87297.0,87289.0,0.01145619]
[1766595330424,0.05729057,87302.0,87292.0,0.0114558]
[1766595330563,0.05729057,87302.0,87290.0,0.05728032]
[1766595330564,1.4237,87315.0,87307.0,0.01145383]
[1766595330759,1.4237,87315.0,87302.0,0.000328]
[1766595330760,1e-06,87307.0,87302.0,0.01152]
[1766595331014,1e-06,87307.0,87302.0,0.02297449]
[1766595331209,0.01145239,87318.0,87305.0,0.01145409]
[1766595331430,0.01145252,87317.0,87307.0,0.01145383]
[1766595331654,0.01145265,87316.0,87305.0,0.06872422]
[1766595331798,0.01145265,87316.0,87306.0,0.01145396]
[1766595332003,0.01145252,87317.0,87305.0,0.01145409]
[1766595332004,1.4237,87317.0,87305.0,0.01145409]
[1766595332200,0.00010652,87318.0,87305.0,0.01145409]
[1766595332436,0.01145265,87316.0,87306.0,0.01152]
[1766595332785,0.01145278,87315.0,87306.0,0.01152]
[1766595332962,0.01145265,87316.0,87306.0,0.02297396]
[1766595333116,1.43515304,87313.0,87305.0,0.01152]
[1766595333316,1.4237,87313.0,87305.0,0.01152]
[1766595333944,1.4237,87313.0,87305.0,0.02297409]
[1766595334112,1.4237,87313.0,87305.0,0.01152]
[1766595334460,1.4237,87313.0,87305.0,0.02297409]
[1766595335006,1.4237,87313.0,87305.0,0.01152]
[1766595335233,1.4237,87313.0,87305.0,0.02297409]
[1766595335590,1.4237,87313.0,87305.0,0.01152]
[1766595335787,1.48096525,87313.0,87305.0,0.01152]
[1766595336024,1.4237,87313.0,87305.0,0.01152]
[1766595336253,0.01145252,87317.0,87294.0,0.04584]
[1766595336254,0.01145462,87301.0,87294.0,0.04584]
[1766595336438,1.4237,87299.0,87292.0,0.01152]
[1766595336566,1.4237,87299.0,87293.0,0.01152]
[1766595337638,0.01145501,87298.0,87293.0,0.01152]
[1766595337844,0.01145527,87296.0,87293.0,0.01152]
[1766595338425,1.49242994,87299.0,87293.0,0.01152]
[1766595338637,0.01145501,87298.0,87293.0,0.01152]
[1766595338845,0.01145527,87296.0,87293.0,0.01152]
[1766595339164,0.06873187,87296.0,87293.0,0.01152]
[1766595339340,0.01145554,87294.0,87283.0,0.06874065]
[1766595339520,0.06873187,87296.0,87285.0,0.01145672]
[1766595339729,0.01145554,87294.0,87284.0,0.02297685]
[1766595339925,0.06873372,87294.0,87284.0,0.01152]
[1766595340758,0.06873372,87294.0,87284.0,0.02297685]
[1766595340964,0.06873372,87294.0,87284.0,0.01145685]
[1766595341162,0.01145567,87293.0,87285.0,0.01152]
[1766595341761,0.06873372,87294.0,87285.0,0.01152]
[1766595342325,0.0114558,87292.0,87285.0,0.01152]
[1766595342727,0.068735,87292.0,87285.0,0.01152]
[1766595343137,0.01145593,87291.0,87275.0,0.06874788]
[1766595343362,0.22911345,87293.0,87265.0,0.06875555]
[1766595343363,0.01145777,87277.0,87265.0,0.06875555]
[1766595343534,0.0114575,87279.0,87269.0,0.01145882]
[1766595343757,1.4595255,87280.0,87268.0,0.01145895]
[1766595343880,0.0114575,87279.0,87268.0,0.06875368]
[1766595344078,1.4595255,87280.0,87269.0,0.01145882]
[1766595344280,1.4595255,87280.0,87269.0,0.01156536]
[1766595344281,1.39078,87280.0,87269.0,0.01156536]
[1766595344484,1.4595243,87280.0,87270.0,0.01145869]
[1766595344828,1.39078,87280.0,87273.0,0.05729147]
[1766595345142,1.39078,87280.0,87272.0,0.06875056]
[1766595345349,1.39078,87280.0,87271.0,0.02297856]
[1766595345555,1.40223737,87280.0,87271.0,0.01152]
[1766595345761,0.0114575,87279.0,87271.0,0.01152]
[1766595346011,1.4595243,87280.0,87271.0,0.01152]
[1766595346214,1.40223737,87280.0,87271.0,0.01152]
[1766595347222,0.0114575,87279.0,87271.0,0.01152]
[1766595347612,1.40223737,87280.0,87271.0,0.01152]
[1766595347812,0.0114575,87279.0,87271.0,0.01152]
[1766595348619,1.40223737,87280.0,87271.0,0.01152]
[1766595349017,1.39078,87280.0,87271.0,0.01152]
[1766595349307,0.01145698,87283.0,87273.0,0.01145829]
[1766595349501,0.06874177,87284.0,87273.0,0.06874974]
[1766595349936,0.01145698,87283.0,87273.0,0.06874974]
[1766595350148,0.01145685,87284.0,87274.0,0.01145816]
[1766595350350,1.44806252,87287.0,87276.0,0.0114579]
[1766595350551,0.01145672,87285.0,87276.0,0.01152]
[1766595350758,0.06874042,87285.0,87276.0,0.01152]
[1766595351852,0.01145672,87285.0,87276.0,0.01152]
[1766595352054,0.01145698,87283.0,87276.0,0.01152]
[1766595352258,0.06874111,87284.0,87276.0,0.01152]
[1766595352459,1.40223659,87286.0,87276.0,0.01152]
[1766595352666,0.0687406,87285.0,87276.0,0.01152]
[1766595353644,0.01145685,87284.0,87276.0,0.01152]
[1766595354549,1.40223659,87286.0,87276.0,0.01152]
[1766595354753,0.01145685,87284.0,87276.0,0.01152]
[1766595354954,0.01145698,87283.0,87276.0,0.01152]
[1766595355355,0.01145711,87282.0,87276.0,0.01152]
[1766595355563,0.01145724,87281.0,87276.0,0.01152]
[1766595355975,0.01145698,87283.0,87276.0,0.01152]
[1766595355976,0.06874194,87283.0,87276.0,0.01152]
[1766595356143,0.01145711,87282.0,87276.0,0.01152]
[1766595356816,0.06874325,87282.0,87276.0,0.01152]
[1766595357820,0.06874315,87283.0,87276.0,0.01152]
[1766595357973,0.01145698,87283.0,87276.0,0.01152]
[1766595358182,0.01145711,87282.0,87276.0,0.01152]
[1766595358386,0.01145737,87280.0,87276.0,0.01152]
[1766595358566,0.06874368,87281.0,87276.0,0.01152]
[1766595359143,0.01145724,87281.0,87276.0,0.01152]
[1766595359354,0.01145711,87282.0,87276.0,0.01152]
[1766595359770,0.06874198,87283.0,87276.0,0.01152]
[1766595360218,0.01145711,87282.0,87276.0,0.01152]
[1766595360627,0.06874198,87283.0,87276.0,0.01152]
[1766595360812,0.01145711,87282.0,87276.0,0.01152]
[1766595361057,0.01145698,87283.0,87276.0,0.01152]
[1766595361441,0.01145711,87282.0,87276.0,0.01152]
[1766595361678,1.39078,87286.0,87282.0,0.000549]
[1766595361952,1.39078,87286.0,87276.0,0.01152]
[1766595362312,0.01145672,87285.0,87276.0,0.01152]
[1766595363258,0.06874036,87285.0,87276.0,0.01152]
[1766595363463,0.05728556,87283.0,87276.0,0.01152]
[1766595363830,0.01145685,87284.0,87276.0,0.01152]
[1766595364035,0.05728366,87285.0,87276.0,0.01152]
[1766595364237,0.01145685,87284.0,87276.0,0.01152]
[1766595364841,0.01145698,87283.0,87276.0,0.01152]
[1766595365128,0.01145685,87284.0,87276.0,0.01152]
[1766595365352,0.01145672,87285.0,87276.0,0.01152]
[1766595365541,0.01145659,87286.0,87276.0,0.01152]
[1766595366228,0.01145672,87285.0,87276.0,0.01152]
[1766595367099,0.01145685,87284.0,87276.0,0.01152]
[1766595367319,0.01145698,87283.0,87276.0,0.01152]
[1766595367759,0.01145672,87285.0,87276.0,0.01152]